Cogmind - Beta 14 @@@ ROGUE MODE // 2024.09.01 @ 17:12:35 // Winter2022/Polymind Player: f3-rnm Result: Destroyed by H-55 Commando with Gauss Rifle Performance ------------- Evolutions (2) 1000 Regions Visited (5) 1000 Robots Destroyed (20) 100 Value Destroyed (840) 840 Prototype IDs (0) 0 Alien Tech Used (0) 0 Bonus (3027) 3027 TOTAL SCORE: 5417 Bonus ------- Polymind Skill 3018 Follower Combat Kills 32 Friendly Fire -23 Cogmind --------- Core Integrity 0/550 Matter 0/0 Energy 18/100 System Corruption 0% Temperature Cool (0) Movement Core (50) Location -8/Materials Parts ------- > --- POWER (1) -------- (None) > --- PROPULSION (2) --- (None) > --- UTILITY (1) ------ (None) > --- WEAPON (2) ------- (None) > --- INVENTORY (0) ---- (None) Peak State ------------ > --- POWER ------------ Light Nuclear Core > --- PROPULSION ------- Carbon-fiber Leg Carbon-fiber Leg > --- UTILITY ---------- Targeting Computer > --- WEAPON ----------- Assault Rifle Gauss Rifle > --- INVENTORY -------- (None) [Rating: 15] Favorites ----------- Power Light Ion Engine Engine Light Ion Engine Power Core Light Nuclear Core Propulsion Wheel Treads Light Treads Leg Carbon-fiber Leg Wheel Wheel Utility Heat Sink Device Heat Sink Storage Medium Matter Pod Processor Terrain Scan Processor Protection Light Armor Plating Weapon Gauss Rifle Energy Gun Beam Rifle Ballistic Gun Gauss Rifle Special Weapon Welding Torch Slashing Weapon Katana Build | -11 -10 -10 -10 -9 -8 ------- Run | Yrd Mat Min Exi Min Mat Slots Evolved . | . . . . . . Power . | . . . . . . Propulsion . | . . . . . . Utility . | . . . . . . Weapon . | . . . . . . Parts Attached . | . . . . . . Power . | . . . . . . Engine . | . . . . . . Core . | . . . . . . Reactor . | . . . . . . Propulsion . | . . . . . . Treads . | . . . . . . Leg . | . . . . . . Wheel . | . . . . . . Hover . | . . . . . . Flight . | . . . . . . Utility . | . . . . . . Device . | . . . . . . Storage . | . . . . . . Processor . | . . . . . . Hackware . | . . . . . . Protection . | . . . . . . Artifact . | . . . . . . Weapon . | . . . . . . Energy Gun . | . . . . . . Energy Cannon . | . . . . . . Ballistic Gun . | . . . . . . Ballistic Cannon . | . . . . . . Launcher . | . . . . . . Special Weapon . | . . . . . . Impact Weapon . | . . . . . . Slashing Weapon . | . . . . . . Piercing Weapon . | . . . . . . Special Melee Weapon . | . . . . . . Unidentified Prototypes . | . . . . . . Parts Lost 12 | . 1 1 3 . 7 Power 1 | . . . . . 1 Propulsion 4 | . . 1 . . 3 Utility 5 | . . . 3 . 2 Weapon 2 | . 1 . . . 1 Highest Loss Streak 2 | . 1 1 2 . 2 To Critical Strikes . | . . . . . . Average Slot Usage (%) 77 | . 77 79 50 76 92 Engine 11 | . 10 14 14 19 8 Core 2 | . . . . . 4 Treads 4 | . . . . . 8 Leg 9 | . . . . . 16 Wheel 11 | . 21 22 14 38 5 Device 11 | . 21 28 14 . 8 Storage 3 | . . . . 18 3 Processor 7 | . 10 14 7 . 8 Protection 3 | . . . . . 5 Energy Gun 2 | . . . . . 4 Ballistic Gun 8 | . . . . . 16 Peak Build Rating 15 | . 8 7 6 4 15 Average Rating 8 | . 5 6 4 3 11 On Entrance 3 | . . 7 6 2 4 Naked Turns 45 | . 27 . 3 4 11 Heaviest Build 18 | . 6 5 5 5 18 Greatest Support 40 | 3 20 20 10 20 40 Greatest Overweight (x) 1 | . . . 1 . 1 Average Overweight (x) . | . . . . . . Largest Inventory Capacity 4 | . . . . 1 4 Average Capacity . | . . . . . 1 Most Carried . | . . . . . . Average Carried . | . . . . . . Final Capacity 1 | . . . . 1 . Final Carried . | . . . . . . Class Distribution -------------------- 36% | Builder 22% | Hunter 18% | Sentry 8% | Worker 5% | Recycler 5% | Duelist Dominant Class ---------------- Builder | -10/Materials Builder | -10/Mines Builder | -10/Exiles Worker | -9/Mines Hunter | -8/Materials Resources | -11 -10 -10 -10 -9 -8 ----------- Run | Yrd Mat Min Exi Min Mat Matter Collected 371 | . . . . 53 318 Remotely . | . . . . . . Salvage Created 666 | . . . 182 . 484 Parts 55 | . . . 20 . 35 Haulers Intercepted . | . . . . . . Recyclers Shooed 1 | . . . . . 1 Parts Field Recycled . | . . . . . . Retrieved Matter . | . . . . . . Parts Self-Destructed . | . . . . . . Prevented . | . . . . . . Kills | -11 -10 -10 -10 -9 -8 ------- Run | Yrd Mat Min Exi Min Mat Combat Hostiles Destroyed 18 | . . . 2 . 16 Melee 6 | . . . 2 . 4 Guns 12 | . . . . . 12 Classes Destroyed 6 | . . . 1 . 5 Worker 1 | . . . . . 1 Watcher 1 | . . . . . 1 Grunt 12 | . . . 2 . 10 Brawler 1 | . . . . . 1 Duelist 1 | . . . . . 1 Sentry 4 | . . . . . 4 Best Kill Streak 3 | . . . 1 . 3 Combat Bots Only 3 | . . . 1 . 3 Max Kills in Single Turn 2 | . . . 1 . 2 Gunslinging . | . . . . . . Exploded . | . . . . . . Melee 1 | . . . 1 . 1 Uniques/NPCs Destroyed . | . . . . . . Combat | -11 -10 -10 -10 -9 -8 -------- Run | Yrd Mat Min Exi Min Mat Hostile Shots Fired 165 | . 9 . . . 156 Missed 41 | . 2 . . . 39 Damage Taken 2128 | . 77 18 193 9 1831 Core 670 | . 21 1 75 2 571 Absorbed by Shields . | . . . . . . Redirected to Shielding 21 | . . . . . 21 Ignored by Resistances 5 | . . . . . 5 Core Remaining (%) 80 | 100 . . . 60 . Volleys Fired 55 | . 1 . . . 54 Largest 2 | . 1 . . . 2 Hottest 79 | . 20 . . . 79 Shots Fired 108 | . 1 . . . 107 Gun 107 | . . . . . 107 Cannon . | . . . . . . Launcher . | . . . . . . Special 1 | . 1 . . . . Kinetic 79 | . . . . . 79 Thermal 29 | . 1 . . . 28 Explosive . | . . . . . . Electromagnetic . | . . . . . . Robot Hit Streak 19 | . . . . . 19 Robot Miss Streak 4 | . . . . . 4 Penetration Max 1 | . . . . . 1 Secondary Targets . | . . . . . . Shots Hit Robots 89 | . . . . . 89 Core Hits 56 | . . . 22 1 33 Critical Kills . | . . . . . . Critical Parts Destroyed . | . . . . . . Critical Strikes 2 | . . . . . 2 Burn 2 | . . . . . 2 Melee Attacks 18 | . . . . . 18 Impact . | . . . . . . Slashing 18 | . . . . . 18 Piercing . | . . . . . . Sneak Attacks 3 | . . . . . 3 Combat Hostiles 1 | . . . . . 1 Follow-up Attacks . | . . . . . . Damage Inflicted 2330 | . . 2 380 21 1927 Guns 1336 | . . . . . 1336 Cannons . | . . . . . . Explosions . | . . . . . . Melee 591 | . . . . . 591 Ramming 403 | . . 2 380 21 . Kinetic 1009 | . . . . . 1009 Thermal 327 | . . . . . 327 Explosive . | . . . . . . Electromagnetic . | . . . . . . Impact . | . . . . . . Slashing 591 | . . . . . 591 Piercing . | . . . . . . Highest Corruption 29 | . . . 29 29 . Average Corruption 19 | . . . 16 29 . Corruption Purged . | . . . . . . Corruption Blocked . | . . . . . . Effects 17 | . . . 12 5 . Message Errors 7 | . . . 5 2 . Heat Flow Errors 3 | . . . 2 1 . Energy Discharges 3 | . . . 2 1 . Parts Fused 1 | . . . 1 . . Data Loss (minor) 2 | . . . 1 1 . Data Loss (major) 1 | . . . 1 . . Overload Shots . | . . . . . . Overflow Damage 111 | . . . 4 . 107 Projectiles . | . . . . . . Explosions . | . . . . . . Melee 111 | . . . 4 . 107 Knockbacks 5 | . . . 5 . . Impact 5 | . . . 5 . . Kinetic . | . . . . . . Secondary . | . . . . . . Self-Inflicted Damage 153 | . . 1 143 9 . Shots . | . . . . . . Rammed 187 | . . 1 179 7 . Targets Rammed 187 | . . 1 179 7 . Kicked . | . . . . . . Crushed . | . . . . . . Highest Temperature 243 | . 16 4 243 163 197 Average Temperature 67 | . 5 4 123 83 56 Received Heat Transfer 933 | . 42 9 . . 882 Siege Activations . | . . . . . . Robots Corrupted 2 | . . . 2 . . Combat Hostiles 2 | . . . 2 . . Parts Fried 4 | . . . 4 . . Impact Corruptions 3 | . . . 3 . . Robots Melted . | . . . . . . Combat Hostiles . | . . . . . . Parts Melted 3 | . . . . . 3 Heat Transferred 962 | . . . . . 962 Parts Sabotaged . | . . . . . . Parts Stolen . | . . . . . . Parts Stripped . | . . . . . . Power Chain Reactions . | . . . . . . Alert | -11 -10 -10 -10 -9 -8 ------- Run | Yrd Mat Min Exi Min Mat Peak Influence 274 | . 60 41 . 22 274 Initial 19 | . . 19 . . . Average 78 | . 37 13 . 1 96 Maximum Alert Level 1 | . . . . . 1 Low Security (%) 85 | 100 100 100 . 100 81 Level 1 14 | . . . . . 18 Level 2 . | . . . . . . Level 3 . | . . . . . . Level 4 . | . . . . . . Level 5 . | . . . . . . High Security . | . . . . . . Max Security . | . . . . . . Squads Dispatched 4 | . 1 . . . 3 Investigation 1 | . . . . . 1 Extermination . | . . . . . . Reinforcement 3 | . 1 . . . 2 Assault . | . . . . . . Garrison . | . . . . . . Intercept . | . . . . . . Searches Triggered . | . . . . . . Construction Impeded . | . . . . . . Haulers Reinforced . | . . . . . . Active Scanning Responses . | . . . . . . Cargo Convoy Interrupts . | . . . . . . Stealth | -11 -10 -10 -10 -9 -8 --------- Run | Yrd Mat Min Exi Min Mat Distress Signals 6 | . . . . . 6 Communications Jammed . | . . . . . . Distress Signals . | . . . . . . Times Spotted 60 | . 7 . . . 53 Peak Tracking Total 8 | . 4 . . . 8 Tactical Retreats 6 | . . . . . 6 Traps | -11 -10 -10 -10 -9 -8 ------- Run | Yrd Mat Min Exi Min Mat Traps Triggered 2 | . . . . . 2 Indirectly . | . . . . . . Trap Hack Attempts . | . . . . . . Triggered . | . . . . . . Disarmed . | . . . . . . Reprogrammed . | . . . . . . Reused . | . . . . . . Traps Extracted . | . . . . . . Installed . | . . . . . . Triggered . | . . . . . . Machines | -11 -10 -10 -10 -9 -8 ---------- Run | Yrd Mat Min Exi Min Mat Machines Disabled 1 | . . . . . 1 Max in Single Turn 1 | . . . . . 1 Machines Repaired . | . . . . . . Machines Dismantled . | . . . . . . Machines Sabotaged . | . . . . . . Overloaded Fab Kills . | . . . . . . Hacking | -11 -10 -10 -10 -9 -8 --------- Run | Yrd Mat Min Exi Min Mat Machines Accessed 4 | . . . . . 4 Terminals 3 | . . . . . 3 Fabricators . | . . . . . . Repair Stations 1 | . . . . . 1 Recycling Units . | . . . . . . Scanalyzers . | . . . . . . Garrison Access . | . . . . . . Total Hacks 11 | . . . . . 11 Successful 1 | . . . . . 1 Failed 10 | . . . . . 10 Catastrophic 4 | . . . . . 4 Database Lockouts . | . . . . . . Manual 8 | . . . 2 . 6 Terminals 8 | . . . . . 8 Fabricators . | . . . . . . Repair Stations 3 | . . . . . 3 Recycling Units . | . . . . . . Scanalyzers . | . . . . . . Garrison Access . | . . . . . . Terminal Hacks 1 | . . . . . 1 Branch Access Points 1 | . . . . . 1 Fabricator Hacks . | . . . . . . Repair Station Hacks . | . . . . . . Recycling Unit Hacks . | . . . . . . Scanalyzer . | . . . . . . Garrison Access Hacks . | . . . . . . Unauthorized Hacks . | . . . . . . Terminals . | . . . . . . Fabricators . | . . . . . . Repair Stations . | . . . . . . Recycling Units . | . . . . . . Scanalyzers . | . . . . . . Garrison Access . | . . . . . . Data Cores Recovered . | . . . . . . Used . | . . . . . . Hacking Detections 3 | . . . . . 3 Full Trace Events 1 | . . . . . 1 Feedback Events . | . . . . . . Feedback Blocked . | . . . . . . Robot Schematics Acquired . | . . . . . . Robots Built . | . . . . . . Authchips . | . . . . . . Time . | . . . . . . Total Robot Build Rating . | . . . . . . Part Schematics Acquired . | . . . . . . Parts Built . | . . . . . . Authchips . | . . . . . . Time . | . . . . . . Total Part Build Rating . | . . . . . . Parts Repaired . | . . . . . . Time . | . . . . . . Parts Recycled . | . . . . . . Recycled Matter . | . . . . . . Retrieved Matter . | . . . . . . Retrieved Components . | . . . . . . Parts Scanalyzed . | . . . . . . Part Schematics Acquired . | . . . . . . Parts Damaged . | . . . . . . Bothacking | -11 -10 -10 -10 -9 -8 ------------ Run | Yrd Mat Min Exi Min Mat Used RIF Installer . | . . . . . . Robots Hacked 7 | . 1 . 1 . 5 Non-combat 3 | . 1 . 1 . 1 Combat 4 | . . . . . 4 Robot Hacks Applied 11 | . 1 . 1 . 9 map_walls 2 | . 1 . 1 . . find_recycling 1 | . . . . . 1 find_shortcuts 4 | . . . . . 4 find_garrison 4 | . . . . . 4 Relay Couplers Released . | . . . . . . Fabnet Peak Effective % . | . . . . . . Robots Rewired 1 | . . . 1 . . Allies Hacked . | . . . . . . Hacks Repelled . | . . . . . . Allies | -11 -10 -10 -10 -9 -8 -------- Run | Yrd Mat Min Exi Min Mat Total Allies 4 | . . 2 1 1 . Largest Group 2 | . . 2 1 2 . Highest-Rated Group 41 | . . 41 8 39 . Highest-Rated Ally 31 | . . 31 8 31 . Total Orders . | . . . . . . Ally Attacks 13 | . . 6 . 7 . Total Damage 147 | . . 84 . 63 . Kills 2 | . . 1 . 1 . Allies Corrupted . | . . . . . . Allies Melted . | . . . . . . Intel | -11 -10 -10 -10 -9 -8 ------- Run | Yrd Mat Min Exi Min Mat Robot Analysis Total 6 | . 1 . . 1 4 Derelict Logs Recovered 1 | . . 1 . . . Drone Launches . | . . . . . . Drone Recoveries . | . . . . . . Exploration | -11 -10 -10 -10 -9 -8 ------------- Run | Yrd Mat Min Exi Min Mat Turns Passed 2066 | 10 97 81 594 148 1136 Spaces Moved 1603 | 18 123 100 542 179 641 Core 518 | 18 37 . 416 24 23 Treads 149 | . . . . . 149 Legs 307 | . . . . . 307 Wheels 629 | . 86 100 126 155 162 Hover . | . . . . . . Flight . | . . . . . . Fastest Speed 50 | 50 50 80 50 50 50 Average Speed 89 | 50 70 80 63 75 120 Slowest Speed 160 | 50 80 80 100 80 160 Overloaded Moves . | . . . . . . Propulsion Burnouts . | . . . . . . Robots Hopped . | . . . . . . Cave-ins Triggered . | . . . . . . Exploration Rate (%) 42 | 3 41 28 84 46 55 Regions Visited 5 Branch Regions 3 Pre-discovered Areas 1 | . . 1 . . . Known Exits Taken . | . . . . . . Unknown Exits Taken 5 | 1 1 1 1 1 . Scrap Searched 1 | . . . . 1 . Spaces Dug . | . . . . . . Terrain Destroyed . | . . . . . . Melee . | . . . . . . Projectile . | . . . . . . AOE . | . . . . . . Terrain Rammed . | . . . . . . Walls Destroyed . | . . . . . . Machines Disabled . | . . . . . . Actions | -11 -10 -10 -10 -9 -8 --------- Run | Yrd Mat Min Exi Min Mat Total 2102 | 18 131 100 791 190 872 Wait 219 | . 8 . 47 5 159 Move 1599 | 18 122 99 541 178 641 Hop . | . . . . . . Pick Up . | . . . . . . Fast Attach . | . . . . . . Attach . | . . . . . . Detach . | . . . . . . Swap . | . . . . . . Drop . | . . . . . . Fire 55 | . 1 . . . 54 Melee 18 | . . . . . 18 Ram 187 | . . 1 179 7 . Kick . | . . . . . . Crush . | . . . . . . Escape Stasis . | . . . . . . Rewire 24 | . . . 24 . . Trap . | . . . . . . Miscellaneous . | . . . . . . Route ------- -11/Scrapyard -10/Materials (discovered 2 exits: [*Mat] / [*Min]) -10/Mines -10/Exiles -9/Mines -8/Materials (discovered 2 exits: [*Fac] / *Sto) History --------- Turn | Location | Event 2 | -11/Scrapyard | Discovered new exit (range 16) 11 | -11/Scrapyard | Entered Materials 64 | -10/Materials | Discovered new exit (range 9) 99 | -10/Materials | Discovered new exit (range 8) 108 | -10/Materials | Entered Mines 113 | -10/Mines | Learned location of Storage (-8) 169 | -10/Mines | Learned Materials stockpile data 184 | -10/Mines | Deemed a non-threat by the Exiles lab entrance 184 | -10/Mines | Discovered new exit (range 6) 189 | -10/Mines | Entered Exiles 189 | -10/Exiles | Found Exiles lab destroyed 409 | -10/Exiles | Opened EX-Vault 441 | -10/Exiles | System corruption reached 10% 730 | -10/Exiles | Discovered new exit (range 14) 783 | -10/Exiles | Entered Mines 783 | -9/Mines | Accompanied by 1 ally 843 | -9/Mines | Received a Mining Laser from a helpful Derelict 911 | -9/Mines | Discovered new exit (range 8) 931 | -9/Mines | Entered Materials 960 | -8/Materials | Discovered new exit (range 10) 1404 | -8/Materials | Discovered new exit (range 8) 1580 | -8/Materials | Core integrity fell below 50% 1720 | -8/Materials | Core integrity fell below 20% 1963 | -8/Materials | Identified exit to Storage 2067 | -8/Materials | Destroyed by H-55 Commando with Gauss Rifle Last Messages --------------- 01965_ Protomatter-15 decays. 01976_ Connecting with Repair Station... 01988_ Slug penetrates G-47 Trooper. 01996_ Assault Rifle destroyed. 01996_ Critical hit (Burn: +37). 01997_ Slug penetrates G-47 Trooper. 01997_ G-47 Trooper destroyed. 01999_ Acquired 17 Protomatter. 02014_ Acquired 120 matter. 02055_ K-01 Serf cleans the Terminal. 02056_ W-25 Informer sends out distress signal. 02059_ Released control of H-55 Commando. 02061_ H-55 Commando reactivates. 02061_ Penetrated by Slug. 02062_ K-01 Serf collects debris. 02062_ Penetrated by Slug. 02064_ Took control of H-55 Commando. 02064_ Released control of H-55 Commando. 02065_ H-55 Commando reactivates. 02065_ Slug penetrates Wall. Map ----- +----------------------------------------------------+ | + # ????????????????????????????????? | | # # ?????????????????????????!????????? | | # """ # ????????????????=???????????????????? | | # """"" ##+#??????????#??????????????????????????? | | # """"" ## #????????? #??????????????????????????? | | / """"" + #???????? #??????????????????????????? | | # """ ####??????? #??????????????????????????? | | # #????????? #??????????????????????????? | | #########?######## ### ?????????????????????? | | ########## % ???????????????????? | | % ???????????????????? | | ???????????????????? | | #####+#### = =???????????????????? | | ### # ##########? !! ???????????????????? | | ??# ! # #??????????# #???????????????????? | | ??#""" %# #??????????# *#???????????????????? | | ??#""" [+ #??????????#= #???????????????????? | | ###""" # #??????????#!!#???????????????????? | | # "" # ############ #???????????????????? | | #""" # ## # #???????????????????? | | #"" # ## # #??#####????????????? | | #"" [ # ## """ """ # #?? ?????????????? | | # " + + """ """ # #? """ #????????????? | | ""#? ####### """ """ # #? """ #????????????? | | Y"#########?????# + # """ #?????????+??? | | ""#?????????????# ! !@# # #????????????? | | #?????????????#= u # + ! #????????????? | | ######??????????#######+### ########????????????? | | ^ ##############???# #?# ##T###??????????????? | | ^ # """" """" #???# #?# ##?????????????? | | # """" """" #???# ### +?????????????? | | ## + """" """" ##### ##" "" ##?????????????? | | ?# # + ##T """ !#???????????+??? | | ?# < # ########" """ ##?????????????? | | ?# ##############??????## "" ##+###+#??????? | | ?#####???????????????????# #??????? | | ?????????????????????????# ! #??????? | | ???????????????????????#####+## +??????? | | ???????????????????????# ########## #??????? | | ???????????????????????# """ #??????????????????? | | ???????????????????????#/[ R" #??????????????????? | | ???????????????????????# """ #??????????????????? | | ???????????????????????# #??????????????????? | | ???????????????????????# % #??????????????????? | | ???????????????????????########??????????????????? | | | | | | | | | | | +----------------------------------------------------+ Best States ------------- Heat Dissipation 36 Energy Generation 19 Energy Capacity 215 Matter Stores 200 Matter Capacity 200 Sight Range 16 Terrain Scan Range 14 Terrain Scan Density 85 Armor Coverage 150 Resistance: KI 25 Resistance: EX 50 Resistance: I 25 Resistance: S 25 Resistance: P 25 Core Shielding 20 Evasion (%) 55 Targeting Accuracy 5 Melee Accuracy 5 Recoil Reduction 2 Item Schematics ----------------- None Robot Schematics ------------------ None Fabricated ------------ Nothing Alien Tech Used ----------------- None Achievements -------------- None Challenges ------------ None Polymind | -11 -10 -10 -10 -9 -8 ---------- Run | Yrd Mat Min Exi Min Mat Hosts 8 | . 1 . 1 1 5 Combat Hostiles 4 | . . . . . 4 Allies . | . . . . . . Unique Host Classes 6 | . 1 . . 1 4 Average Host Suspicion 82 | . 100 22 82 5 94 Unsuspicious Activity 314 | . . 10 152 114 38 Returns to Shadow . | . . . . . . Fuzzy Dispatches . | . . . . . . Protomatter Created 281 | . . 10 54 . 217 Used 140 | . 5 . 5 5 125 Decayed 81 | . . . . . 81 Highest Spend 34 | . 5 . 5 5 34 Top 5 Hosts by Kills: Y-45 Defender (-8/Materials: 7) H-55 Commando (-8/Materials: 5) L-31 Rogue (-8/Materials: 4) U-05 Engineer (-10/Materials: 2) Game ------ Seed BladeGravityCleaver Manual? 0 Play Time 00:18:04 Cumulative 246.4 hours Start 2024.09.01 @ 17:00:38 End 2024.09.01 @ 17:12:35 Sessions 1 Manual Loads 0 Difficulty Rogue Special Mode Winter2022/Polymind Game No. 260 Rogue 224 Adventurer 36 Explorer 0 Win Type - Total 10 Types 3/0/7/0/0/0/0/0/0 Lore% 62 Gallery% 82 Achievement% 72 Wizard Run 0 Options --------- Layout 0 ASCII 0 Keyboard 0 Movement Mouse Keybinds 0 Fullscreen 1 Font 18/SmallcapsGlow Map View 76x50 Zoom Use 0% Tactical HUD 1 Map Filters NONE Filters NONE Steam 1 RUN: 93fb8381-2020-46eb-99cd-f4dd22284196